bitfinex-derivatives/quotes_ETHF0:USTF0_20250701
["timestamp","ask_amount","ask_price","bid_price","bid_amount"]
[1751363588604,3.94614103,2457.0,2456.7,2.33391573]
[1751363588605,3.24684103,2457.0,2456.7,2.33391573]
[1751363588809,3.24684103,2457.1,2457.0,0.81381]
[1751363589009,37.03178,2457.1,2457.0,0.41680105]
[1751363589600,0.81378,2457.1,2456.9,3.14773573]
[1751363589801,24.726,2457.0,2456.9,2.33391573]
[1751363590010,24.726,2457.0,2456.9,4.4939624]
[1751363590406,0.81373,2457.3,2456.9,3.6801224]
[1751363590615,37.02875,2457.2,2457.1,3.14766573]
[1751363591111,37.02875,2457.2,2457.1,2.33391573]
[1751363591309,37.02875,2457.2,2457.1,3.14769573]
[1751363591810,37.02875,2457.2,2457.1,2.33391573]
[1751363591811,12.30475,2457.2,2457.1,2.33391573]
[1751363592114,37.02875,2457.2,2457.1,2.33391573]
[1751363592414,0.81375,2457.2,2457.1,3.14769573]
[1751363592816,37.02875,2457.2,2457.1,2.33391573]
[1751363593510,37.02875,2457.2,2456.8,2.23247]
[1751363593511,40.58328573,2457.2,2456.8,2.23247]
[1751363593710,0.81383,2457.0,2456.9,0.81384]
[1751363593913,25.53683,2457.0,2456.9,0.81384]
[1751363594214,0.81384,2456.9,2456.8,2.23246]
[1751363594907,12.30382,2457.0,2456.9,0.81383]
[1751363595112,37.02483,2457.0,2456.9,0.81384]
[1751363595306,0.81383,2457.0,2456.9,0.81384]
[1751363595506,0.81384,2456.9,2456.8,2.23246]
[1751363597118,36.211,2457.0,2456.8,2.23246]
[1751363597119,37.02483,2457.0,2456.9,0.81384]
[1751363597715,37.02483,2457.0,2456.8,1.4186]
[1751363597716,0.81384,2456.9,2456.8,2.23245]
[1751363598214,37.02484,2457.0,2456.9,0.81384]
[1751363598621,0.8138,2457.1,2457.0,0.8138]
[1751363598916,37.0228,2457.1,2457.0,0.8138]
[1751363599120,0.81381,2457.0,2456.9,3.14773573]
[1751363599321,0.81381,2457.0,2456.9,2.33391573]
[1751363599517,0.81381,2457.0,2456.9,3.14775573]
[1751363600716,0.81381,2457.0,2456.9,2.33391573]
[1751363601720,0.81381,2457.0,2456.9,3.14775573]
[1751363602123,37.02081,2457.0,2456.9,3.14775573]
[1751363602921,0.81381,2457.0,2456.9,2.33391573]
[1751363603220,37.01981,2457.0,2456.9,3.14775573]
[1751363603420,36.206,2457.0,2456.9,3.14775573]
[1751363603622,0.7116,2457.1,2457.0,0.81381]
[1751363603821,36.9176,2457.1,2457.0,0.81381]
[1751363604017,36.9176,2457.1,2456.9,2.33391573]
[1751363604224,0.81381,2457.0,2456.9,3.14773573]
[1751363604923,37.01881,2457.0,2456.9,2.33391573]
[1751363607524,0.81384,2456.9,2456.8,1.4186]
[1751363607919,25.52984,2456.9,2456.8,1.4186]
[1751363609326,25.52984,2456.9,2456.8,2.23248]
[1751363610127,25.52784,2456.9,2456.8,2.23248]
[1751363610727,0.81384,2456.9,2456.8,2.23248]
[1751363610920,25.52784,2456.9,2456.8,2.23248]
[1751363611824,25.52784,2456.9,2456.8,1.4186]
[1751363612025,25.52784,2456.9,2456.8,2.23248]
[1751363612322,0.81384,2456.9,2456.8,2.23248]
[1751363612528,25.52784,2456.9,2456.8,2.23248]
[1751363612728,25.52784,2456.9,2456.8,3.65418]
[1751363617229,25.52784,2456.9,2456.8,4.9891602]
[1751363617425,24.714,2456.9,2456.8,4.9891602]
[1751363618126,12.30284,2457.0,2456.9,0.81384]
[1751363618326,37.01484,2457.0,2456.9,3.14775573]
[1751363619327,37.01484,2457.0,2456.9,4.48387443]
[1751363619531,36.197,2457.0,2456.9,4.48387443]
[1751363619726,37.01081,2457.0,2456.9,4.48387443]
[1751363619922,0.81381,2457.1,2457.0,0.81375]
[1751363620127,37.00981,2457.1,2457.0,2.14986203]
[1751363620729,0.81381,2457.1,2457.0,2.14986203]
[1751363620930,37.00981,2457.1,2457.0,2.14986203]
[1751363621530,37.00881,2457.1,2457.0,2.14986203]
[1751363622631,0.81381,2457.1,2457.0,2.14986203]
[1751363622836,37.00881,2457.1,2457.0,2.14986203]
[1751363624635,37.00881,2457.1,2457.0,1.33611203]
[1751363624832,25.52281,2457.1,2457.0,2.14992203]
[1751363625031,37.00781,2457.1,2457.0,1.33611203]
[1751363625437,37.00781,2457.1,2457.0,2.14992203]
[1751363625632,37.00781,2457.1,2457.0,1.33611203]
[1751363628335,0.81381,2457.1,2457.0,3.67002776]
[1751363628537,37.00681,2457.1,2457.0,3.67002776]
[1751363628739,37.00681,2457.1,2457.0,1.33611203]
[1751363629738,0.81381,2457.1,2457.0,1.33611203]
[1751363629939,37.00581,2457.1,2457.0,1.33611203]
[1751363632739,37.00481,2457.1,2457.0,1.33611203]
[1751363635638,37.00381,2457.1,2457.0,1.33611203]
[1751363636231,0.81381,2457.1,2457.0,1.33611203]
[1751363636435,37.00381,2457.1,2457.0,1.33611203]
[1751363636834,38.31951,2457.1,2457.0,1.33611203]
[1751363637036,39.02931,2457.1,2457.0,1.33611203]
[1751363641647,2.83931,2457.1,2457.0,1.33611203]
[1751363641847,39.02731,2457.1,2457.0,1.33611203]
[1751363643954,2.83931,2457.1,2457.0,1.33611203]
[1751363644250,39.02631,2457.1,2457.0,1.33611203]
[1751363644952,0.81384,2456.9,2456.8,1.21980451]
[1751363645250,25.51584,2456.9,2456.8,1.33016842]
[1751363645846,26.85564,2456.9,2456.8,1.33016842]
[1751363648254,0.81391,2456.7,2456.6,0.6961]
[1751363648455,25.51491,2456.7,2456.6,0.6961]
[1751363649356,36.99991,2456.7,2456.6,0.6961]
[1751363649550,36.99991,2456.7,2456.6,1.51004]
[1751363649751,2.03453,2457.1,2456.7,0.81391]
[1751363649951,36.99384,2457.0,2456.9,2.33391573]
[1751363650147,36.99384,2457.0,2456.9,4.42481573]
[1751363650352,36.99484,2457.0,2456.9,4.42481573]
[1751363650549,0.81384,2457.0,2456.9,4.42481573]
[1751363650754,36.99484,2457.0,2456.9,5.23865573]
[1751363651152,36.99484,2457.0,2456.9,4.42481573]
[1751363651352,36.99484,2457.0,2456.9,5.23865573]
[1751363651754,0.81384,2457.0,2456.9,5.23865573]
[1751363651952,36.99384,2457.0,2456.9,5.23865573]
[1751363652157,36.99384,2457.0,2456.9,4.42481573]
[1751363652357,36.99384,2457.0,2456.9,5.23865573]
[1751363652560,36.99384,2457.0,2456.9,4.42481573]
[1751363652859,0.81384,2457.0,2456.9,4.42481573]
[1751363653159,36.99384,2457.0,2456.9,4.42481573]
[1751363655164,36.99384,2457.0,2456.9,5.23865573]
[1751363655462,36.99384,2457.0,2456.9,4.42481573]
[1751363656865,36.99384,2457.0,2456.9,5.23865573]
[1751363658775,36.99384,2457.0,2456.9,2.90474]
[1751363660073,36.99384,2457.0,2456.9,2.0909]
[1751363660274,36.99384,2457.0,2456.9,3.41374642]
[1751363661681,36.99384,2457.0,2456.9,4.22758642]
[1751363662376,36.99384,2457.0,2456.9,3.41374642]
[1751363662576,0.81384,2457.0,2456.9,3.41374642]
[1751363662777,36.98984,2457.0,2456.9,3.41374642]
[1751363662979,36.98984,2457.0,2456.9,1.99024642]
[1751363663173,36.98884,2457.0,2456.9,0.6674]
[1751363664274,36.98884,2457.0,2456.9,1.99061081]
[1751363664978,36.98884,2457.0,2456.9,0.6674]
[1751363665277,36.98884,2457.0,2456.9,1.99062946]
[1751363666876,36.98884,2457.0,2456.9,1.32322946]
[1751363675988,0.81384,2456.9,2456.8,1.633374]
[1751363676185,2.24424,2456.9,2456.8,2.95679898]
[1751363676386,2.24424,2456.9,2456.8,1.32342498]
[1751363678887,0.81384,2456.9,2456.8,2.95679898]
[1751363679083,36.98384,2456.9,2456.8,2.95679898]
[1751363679779,36.98384,2456.9,2456.8,1.32342498]
[1751363680179,0.81388,2456.8,2456.7,3.83871315]
[1751363680387,0.81388,2456.8,2456.7,4.34832399]
[1751363680580,36.97888,2456.8,2456.7,4.34832399]
[1751363681490,0.81388,2456.8,2456.7,4.34832399]
[1751363681686,36.97888,2456.8,2456.7,4.34832399]
[1751363683891,36.97888,2456.8,2456.7,5.16223399]
[1751363684080,36.97888,2456.8,2456.7,4.34832399]
[1751363684594,36.97888,2456.8,2456.7,5.16223399]
[1751363684595,36.97688,2456.8,2456.7,5.16223399]
[1751363684794,36.97688,2456.8,2456.7,4.34832399]
[1751363688891,36.97688,2456.8,2456.7,1.32352084]
[1751363690199,0.81394,2456.6,2456.5,1.3553]
[1751363690400,25.50094,2456.6,2456.5,2.67804192]
[1751363692001,25.50094,2456.6,2456.5,3.49202192]
[1751363692299,25.50094,2456.6,2456.5,2.67804192]
[1751363694707,25.50094,2456.6,2456.5,3.49202192]
[1751363695404,25.50094,2456.6,2456.5,2.67804192]
[1751363695601,0.81394,2456.7,2456.6,0.81394]
[1751363695808,0.81394,2456.7,2456.6,5.03914507]
[1751363695809,36.97494,2456.7,2456.6,5.03914507]
[1751363695999,36.97394,2456.7,2456.6,5.85308507]
[1751363697207,36.97394,2456.7,2456.6,5.03914507]
[1751363697907,36.97394,2456.7,2456.6,5.85308507]
[1751363699209,36.97394,2456.7,2456.6,5.03914507]
[1751363699508,36.97394,2456.7,2456.6,5.85308507]
[1751363699709,36.97394,2456.7,2456.6,4.46998507]
[1751363700305,36.97394,2456.7,2456.6,2.33330315]
[1751363700605,36.97394,2456.7,2456.6,3.14724315]
[1751363701003,36.97394,2456.7,2456.6,2.33330315]
[1751363701202,36.97394,2456.7,2456.6,3.14724315]
[1751363701912,36.97394,2456.7,2456.6,2.33330315]
[1751363702103,0.81394,2456.6,2456.5,1.3553]
[1751363702304,0.81394,2456.6,2456.5,3.49217538]
[1751363704108,36.97094,2456.6,2456.5,3.49217538]
[1751363704309,36.97094,2456.6,2456.5,2.67819538]
[1751363704808,36.97094,2456.6,2456.5,3.49217538]
[1751363705201,36.157,2456.6,2456.5,3.49217538]
[1751363705397,0.81394,2456.7,2456.6,0.81394]
[1751363705602,36.97094,2456.7,2456.6,0.81394]
[1751363705798,0.81394,2456.6,2456.5,2.16925]
[1751363705999,36.97093,2456.7,2456.6,0.81394]
[1751363706203,0.81394,2456.6,2456.5,2.16925]
[1751363706398,0.81394,2456.6,2456.5,3.49257221]
[1751363706608,36.96994,2456.6,2456.5,3.49257221]
[1751363706905,36.96994,2456.6,2456.5,2.67862221]
[1751363707610,36.96994,2456.6,2456.5,3.49260221]
[1751363710012,36.96994,2456.6,2456.5,5.12628953]
[1751363712814,36.96994,2456.6,2456.5,4.31230953]
[1751363713115,36.96994,2456.6,2456.5,5.12628953]
[1751363713315,36.96994,2456.6,2456.5,4.31230953]
[1751363713716,36.96994,2456.6,2456.5,5.12628953]
[1751363713916,36.96994,2456.6,2456.5,4.31230953]
[1751363714817,36.96994,2456.6,2456.5,5.12628953]
[1751363717219,36.96994,2456.6,2456.5,6.34609404]
[1751363717820,0.81394,2456.6,2456.5,6.34609404]
[1751363718019,36.96094,2456.6,2456.5,6.34609404]
[1751363718320,36.95994,2456.6,2456.5,6.34609404]
[1751363718523,36.95994,2456.6,2456.5,5.53211404]
[1751363719221,36.95994,2456.6,2456.5,6.34609404]
[1751363719415,0.81394,2456.6,2456.5,6.34609404]
[1751363719615,36.95994,2456.6,2456.5,6.34609404]
[1751363720721,0.81394,2456.6,2456.5,6.34609404]
[1751363720921,36.95994,2456.6,2456.5,6.34609404]
[1751363721621,0.81394,2456.7,2456.6,0.81392]
[1751363721831,36.95894,2456.7,2456.6,2.13724221]
[1751363722829,0.81394,2456.7,2456.6,2.13724221]
[1751363723028,36.144,2456.7,2456.6,2.13726221]
[1751363723226,36.95791,2456.7,2456.6,3.35706672]
[1751363723930,36.144,2456.7,2456.6,3.35706672]
[1751363724326,36.95791,2456.7,2456.6,3.35706672]
[1751363725231,36.95791,2456.7,2456.6,2.13726221]
[1751363728232,0.81391,2456.7,2456.6,2.13726221]
[1751363728430,36.95591,2456.7,2456.6,3.35706672]
[1751363729131,36.95591,2456.7,2456.6,4.99075404]
[1751363729329,36.95591,2456.7,2456.6,3.77094953]
[1751363737743,36.142,2456.7,2456.6,3.77094953]
[1751363737943,36.95591,2456.7,2456.6,3.77094953]
[1751363740445,0.81391,2456.7,2456.6,3.77094953]
[1751363740641,2.03445,2457.2,2457.1,0.81374]
[1751363740642,0.81379,2457.2,2457.1,0.81374]
[1751363740847,0.81379,2457.2,2457.1,2.44742732]
[1751363741243,0.81379,2457.2,2457.1,0.7025]
[1751363742047,25.47879,2457.2,2457.1,0.7025]
[1751363742243,0.81379,2457.2,2457.1,0.7025]
[1751363742444,25.47879,2457.2,2457.1,0.7025]
[1751363742947,25.47879,2457.2,2457.0,1.63368732]
[1751363742948,0.81378,2457.1,2457.0,1.63368732]
[1751363743847,0.81381,2457.0,2456.9,1.51283]
[1751363744146,0.81381,2457.0,2456.9,0.699]
[1751363744350,0.81381,2457.0,2456.9,1.51284]
[1751363744750,0.81381,2457.0,2456.9,2.83579215]
[1751363745049,0.8138,2457.1,2457.0,0.8138]
[1751363745249,0.8138,2457.1,2457.0,2.13664126]
[1751363745442,25.47877,2457.2,2457.0,1.32284126]
[1751363745647,25.47877,2457.2,2457.0,0.8138]
[1751363746243,25.47877,2457.2,2457.1,1.32238652]
[1751363746449,25.47877,2457.2,2457.1,2.13616652]
[1751363746840,25.47877,2457.2,2457.1,1.32238652]
[1751363747544,0.81378,2457.1,2457.0,0.81379]
[1751363747847,0.81378,2457.1,2457.0,2.12398671]
[1751363749851,25.47378,2457.1,2457.0,4.45706516]
[1751363750449,25.47378,2457.1,2457.0,3.14686845]
[1751363751150,0.81378,2457.1,2457.0,3.14686845]
[1751363751351,4.08021,2457.4,2457.1,0.81372]
[1751363751352,0.81377,2457.2,2457.1,0.81372]
[1751363751547,36.93377,2457.2,2457.1,0.81372]
[1751363752245,0.81378,2457.1,2457.0,3.14685845]
[1751363753553,36.93377,2457.2,2457.1,0.81378]
[1751363754652,0.81377,2457.2,2457.1,0.81378]
[1751363754848,36.93177,2457.2,2457.1,0.81378]
[1751363755753,0.81373,2457.3,2457.2,0.81371]
[1751363755950,0.81369,2457.5,2457.4,0.81365]
[1751363756151,36.93169,2457.5,2457.4,0.81365]
[1751363756454,0.81371,2457.4,2457.3,0.81368]
[1751363758052,36.93071,2457.4,2457.3,0.81368]
[1751363758850,3.24684103,2457.8,2457.2,2.33307845]
[1751363759154,4.02938622,2458.0,2457.8,0.81352]
[1751363759155,0.81353,2457.9,2457.8,0.81352]
[1751363759449,24.654,2457.9,2457.8,0.81352]
[1751363759656,25.46751,2457.9,2457.8,0.81352]
[1751363759848,0.81351,2457.9,2457.8,0.81352]
[1751363760251,25.46651,2457.9,2457.8,0.81352]
[1751363760649,0.81351,2457.9,2457.8,0.81352]
[1751363760849,25.46651,2457.9,2457.8,0.81352]
[1751363762760,0.81351,2457.9,2457.8,0.81352]
[1751363763051,6.05954103,2458.2,2457.7,4.36698845]
[1751363763256,0.81344,2458.2,2458.1,3.14648845]
[1751363763558,3.24684103,2458.4,2458.1,2.33307845]
[1751363763760,12.27339,2458.4,2458.3,3.14645845]
[1751363764151,12.27339,2458.4,2458.3,2.33307845]
[1751363764453,0.81334,2458.5,2458.4,0.81335]
[1751363764959,0.81335,2458.4,2458.3,3.14642845]
[1751363765161,0.81335,2458.4,2458.3,2.33307845]
[1751363766158,0.81335,2458.4,2458.3,3.14645845]
[1751363766649,0.81335,2458.4,2458.3,2.33307845]
[1751363767053,0.81335,2458.4,2458.3,3.14645845]
[1751363767855,12.27134,2458.5,2458.4,0.81335]
[1751363768057,0.81335,2458.4,2458.3,3.14643845]
[1751363768857,0.81335,2458.4,2458.3,2.33307845]
[1751363769259,0.81335,2458.4,2458.3,3.14645845]
[1751363769459,0.81335,2458.4,2458.3,2.33307845]
[1751363769657,0.81335,2458.4,2458.3,3.14645845]
[1751363769960,0.81335,2458.4,2458.3,2.33307845]
[1751363770569,12.1603,2458.5,2458.2,0.81339]
[1751363770764,0.81336,2458.4,2458.3,0.81337]
[1751363771157,0.81336,2458.4,2458.2,1.49059]
[1751363771470,0.81338,2458.3,2458.2,1.4906]
[1751363772363,0.81338,2458.3,2458.2,0.6772]
[1751363772761,0.81338,2458.3,2458.2,1.49061]
[1751363772960,0.81337,2458.4,2458.2,1.49061]
[1751363773160,0.81338,2458.3,2458.2,0.6772]
[1751363777767,0.81338,2458.3,2458.2,1.49061]
[1751363779264,0.81338,2458.4,2458.3,0.81335]
[1751363779465,0.81338,2458.4,2458.3,3.14642845]
[1751363779868,0.81338,2458.4,2458.3,3.14645845]
[1751363780164,0.81338,2458.4,2458.3,2.33307845]
[1751363780565,0.81338,2458.4,2458.3,3.14645845]
[1751363782469,0.81338,2458.4,2458.3,2.33307845]
[1751363782665,0.81338,2458.4,2458.3,3.14645845]
[1751363784472,0.81338,2458.4,2458.3,2.33307845]
[1751363784772,0.81338,2458.4,2458.3,3.14645845]
[1751363784973,0.81338,2458.4,2458.3,2.33307845]
[1751363785174,0.81338,2458.4,2458.3,3.14645845]
[1751363785370,0.81338,2458.4,2458.3,3.83565845]
[1751363786173,0.81338,2458.4,2458.3,3.02227845]
[1751363786374,0.81338,2458.4,2458.3,3.83565845]
[1751363787471,11.451,2458.6,2458.3,0.6892]
[1751363787774,0.81335,2458.4,2458.3,1.50256]
[1751363788771,0.81335,2458.4,2458.3,3.83563845]
[1751363791572,1.3917,2458.7,2458.3,3.02227845]
[1751363791776,0.81332,2458.6,2458.5,0.81328]
[1751363791977,0.81331,2458.5,2458.4,2.11792]
[1751363792172,0.81331,2458.5,2458.4,0.81332]
[1751363793082,0.81331,2458.5,2458.4,3.14639845]
[1751363796982,0.81331,2458.6,2458.5,0.8133]
[1751363797180,0.81331,2458.6,2458.5,3.14637845]
[1751363799481,0.81331,2458.6,2458.5,2.33307845]
[1751363800081,0.81331,2458.6,2458.5,3.14638845]
[1751363800280,0.81331,2458.6,2458.5,4.42919484]
[1751363801785,0.81331,2458.6,2458.5,3.61588484]
[1751363801977,2.085,2458.9,2458.7,0.81322]
[1751363802184,0.81321,2458.9,2458.8,2.33307845]
[1751363805588,0.81318,2459.0,2458.8,2.33307845]
[1751363805790,0.81316,2459.0,2458.9,0.81316]
[1751363806688,0.81317,2459.0,2458.9,3.14624845]
[1751363807590,0.81317,2459.0,2458.9,2.33307845]
[1751363808583,0.81318,2458.9,2458.8,0.679]
[1751363808782,0.81318,2458.9,2458.8,3.01207845]
[1751363809296,0.81318,2458.9,2458.8,3.82528845]
[1751363809494,0.81318,2458.9,2458.8,3.01207845]
[1751363810091,0.81318,2458.9,2458.8,3.82528845]
[1751363810494,0.81318,2458.9,2458.8,3.01207845]
[1751363811296,0.81317,2459.0,2458.9,0.81317]
[1751363811495,0.81317,2459.0,2458.9,3.14624845]
[1751363811695,0.81317,2459.0,2458.9,2.33307845]
[1751363811895,0.81317,2459.0,2458.9,3.14625845]
[1751363812294,0.81313,2459.1,2459.0,0.81314]
[1751363812493,0.81313,2459.1,2459.0,3.14621845]
[1751363812693,0.81313,2459.1,2459.0,2.33307845]
[1751363814298,0.81311,2459.2,2459.1,0.81311]
[1751363815588,0.81312,2459.1,2459.0,3.14619845]
[1751363816100,0.81311,2459.2,2459.1,0.81311]
[1751363816400,0.81312,2459.1,2459.0,3.14619845]
[1751363816793,0.81311,2459.2,2459.1,0.81311]
[1751363817003,0.81311,2459.2,2459.1,3.14618845]
[1751363817496,3.24684103,2459.4,2459.3,0.81305]
[1751363817697,3.24684103,2459.4,2459.3,3.14612845]
[1751363817896,0.81302,2459.4,2459.3,3.14612845]
[1751363818496,0.81305,2459.3,2459.2,1.48616]
[1751363818697,0.81305,2459.3,2459.2,5.09189594]
[1751363818999,0.81305,2459.3,2459.2,3.81923845]
[1751363820496,0.81305,2459.3,2459.2,3.00617845]
[1751363820697,0.81305,2459.3,2459.2,2.33307845]
[1751363820896,0.81305,2459.3,2459.2,3.14615845]
[1751363821304,0.7191,2459.4,2459.3,0.81305]
[1751363821305,1.53214,2459.4,2459.3,0.81305]
[1751363821596,0.81304,2459.4,2459.3,0.81305]
[1751363821801,0.81305,2459.3,2459.2,3.14613845]
[1751363824795,0.81304,2459.4,2459.3,0.81304]
[1751363825196,0.81301,2459.5,2459.4,0.813]
[1751363825397,0.81301,2459.5,2459.4,3.14607845]
[1751363825805,0.81301,2459.5,2459.4,2.33307845]
[1751363826008,0.81301,2459.5,2459.4,3.14609845]
[1751363826408,0.81301,2459.5,2459.4,2.33307845]
[1751363827099,0.81301,2459.5,2459.4,3.00927845]
[1751363827402,0.81301,2459.5,2459.4,3.82229845]
[1751363832508,0.81301,2459.5,2459.4,2.33307845]
[1751363835711,0.81305,2459.3,2459.2,3.01657845]
[1751363836809,0.81304,2459.4,2459.3,0.81303]
[1751363837705,0.81301,2459.5,2459.4,0.813]
[1751363837906,0.81301,2459.5,2459.4,3.14607845]
[1751363838609,2.03232,2459.7,2459.4,3.14607845]
[1751363838913,0.81295,2459.7,2459.6,3.14599845]
[1751363840107,3.90494103,2460.0,2459.7,0.81291]
[1751363840108,0.81291,2459.8,2459.7,0.81291]
[1751363840304,3.24684103,2459.9,2459.8,0.81287]
[1751363840509,4.05969103,2459.9,2459.8,3.14594845]
[1751363840708,0.81285,2459.9,2459.8,3.14594845]
[1751363841309,0.81285,2459.9,2459.8,2.33307845]
[1751363841711,4.74889103,2459.9,2459.8,2.33307845]
[1751363842317,4.74531203,2459.9,2459.8,2.33307845]
[1751363843009,4.74538134,2459.9,2459.8,2.33307845]
[1751363843214,0.81292,2459.7,2459.6,2.33307845]
[1751363843514,0.81306,2459.3,2459.2,0.81305]
[1751363843913,0.81306,2459.3,2459.2,3.14614845]
[1751363846807,0.81306,2459.3,2459.2,2.33307845]
[1751363848218,0.81306,2459.3,2459.2,3.14615845]
[1751363848612,0.81306,2459.3,2459.2,2.33307845]
[1751363850216,0.81306,2459.3,2459.2,3.14615845]
[1751363850417,0.81306,2459.3,2459.2,3.58844081]
[1751363851416,0.81306,2459.3,2459.2,4.40152081]
[1751363851618,0.81306,2459.3,2459.2,3.58844081]
[1751363851814,0.81306,2459.3,2459.2,4.40152081]
[1751363852519,0.81306,2459.3,2459.2,3.58844081]
[1751363852719,0.81306,2459.3,2459.2,4.40152081]
[1751363853019,0.81306,2459.3,2459.2,3.58844081]
[1751363853420,0.81306,2459.3,2459.2,4.40152081]
[1751363854020,0.81306,2459.3,2459.2,3.58844081]
[1751363854320,0.81306,2459.3,2459.2,1.25536236]
[1751363854520,0.81306,2459.3,2459.2,3.58844081]
[1751363855223,0.81306,2459.3,2459.2,4.40152081]
[1751363856423,0.81306,2459.3,2459.2,3.58844081]
[1751363856622,0.81306,2459.3,2459.2,4.40152081]
[1751363858216,0.81306,2459.3,2459.2,3.58844081]
[1751363858425,0.81306,2459.3,2459.2,4.40152081]
[1751363858622,0.81306,2459.3,2459.2,3.58844081]
[1751363859722,0.81306,2459.3,2459.2,4.40152081]
[1751363859918,0.81306,2459.3,2459.2,1.25536236]
[1751363862926,0.81306,2459.3,2459.2,1.27015098]
[1751363863122,12.24806,2459.3,2459.2,0.01478862]
[1751363863328,12.94166,2459.3,2459.2,0.01478862]
[1751363863829,0.81312,2459.1,2459.0,0.6608]
[1751363864030,0.81312,2459.1,2459.0,1.91396696]
[1751363864230,0.81312,2459.1,2459.0,1.92874864]
[1751363865226,0.81312,2459.1,2459.0,0.67558168]
[1751363865626,0.81312,2459.1,2459.0,0.6608]
[1751363865826,0.81312,2459.1,2459.0,0.69040356]
[1751363866826,0.81312,2459.1,2459.0,0.70522544]
[1751363867930,0.81312,2459.1,2459.0,0.7200054]
[1751363868834,0.81312,2459.1,2459.0,1.54793536]
[1751363869025,0.81312,2459.1,2459.0,0.73478536]
[1751363869427,0.81312,2459.1,2459.0,0.74956532]
[1751363870728,0.70963472,2458.9,2458.8,3.79856845]
[1751363871040,0.70963472,2458.9,2458.8,5.05003071]
[1751363871231,0.70963472,2458.9,2458.8,5.06481067]
[1751363872831,0.70963472,2458.9,2458.8,4.25162067]
[1751363873027,0.70963472,2458.9,2458.8,0.02955992]
[1751363873939,0.78187616,2458.8,2458.7,0.7114]
[1751363874130,0.78187616,2458.8,2458.7,1.9625978]
[1751363875127,0.78187616,2458.8,2458.7,0.7114]
[1751363875333,0.81325,2458.7,2458.6,2.33307845]
[1751363875634,0.81325,2458.7,2458.6,3.04047845]
[1751363878039,0.81325,2458.7,2458.6,3.05112197]
[1751363878236,0.81325,2458.7,2458.6,3.04047845]
[1751363878536,0.81325,2458.7,2458.6,3.05289589]
[1751363878737,0.81325,2458.7,2458.6,3.05466981]
[1751363879340,0.81325,2458.7,2458.6,3.05644373]
[1751363879640,0.81325,2458.7,2458.6,3.05821765]
[1751363879840,0.81341,2458.2,2458.1,2.03133083]
[1751363880137,0.81341,2458.2,2458.1,5.76929348]
[1751363880328,0.81341,2458.3,2458.2,0.81341]
[1751363880531,0.81341,2458.3,2458.2,2.06388503]
[1751363880935,0.81338,2458.4,2458.1,5.73898845]
[1751363881134,0.81333,2458.5,2458.4,0.81334]
[1751363881334,0.81333,2458.5,2458.3,3.14642845]
[1751363881540,0.81331,2458.5,2458.4,2.12395]
[1751363881934,12.25131,2458.6,2458.5,0.81331]
[1751363882140,12.25131,2458.6,2458.5,3.83418845]
[1751363882839,12.25131,2458.6,2458.5,3.84483197]
[1751363883140,12.25131,2458.6,2458.5,3.84660589]
[1751363883745,12.25131,2458.6,2458.5,3.03506981]
[1751363883941,12.25131,2458.6,2458.5,3.84837981]
[1751363884136,12.25131,2458.6,2458.5,3.85015373]
[1751363884440,0.81331,2458.6,2458.5,3.85015373]
[1751363884636,0.81331,2458.6,2458.5,3.03861765]
[1751363885240,0.81331,2458.6,2458.5,3.04039157]
[1751363885638,0.81331,2458.6,2458.5,3.04216549]
[1751363886238,0.81331,2458.6,2458.5,3.04393941]
[1751363886432,0.81331,2458.6,2458.5,0.71086096]
[1751363886630,0.81331,2458.6,2458.5,0.71263488]
[1751363886831,0.81331,2458.6,2458.5,0.02483488]
[1751363887032,0.7867412,2458.4,2458.3,3.14645845]
[1751363888444,0.81334,2458.5,2458.4,0.81334]
[1751363889543,0.81334,2458.5,2458.4,1.50424]
[1751363889745,0.81334,2458.5,2458.4,0.6909]
[1751363889944,0.81334,2458.5,2458.4,0.70154352]
[1751363890445,0.81334,2458.5,2458.4,1.51666744]
[1751363890744,0.81334,2458.5,2458.4,2.95044136]
[1751363891439,0.81334,2458.5,2458.4,2.95221528]
[1751363891944,0.81334,2458.5,2458.4,2.9539892]
[1751363892339,0.81334,2458.5,2458.4,2.95576312]
[1751363892539,0.81334,2458.5,2458.4,2.14241312]
[1751363892735,0.81334,2458.5,2458.4,2.14418704]
[1751363893235,0.81334,2458.5,2458.4,2.14596096]
[1751363893739,0.81334,2458.5,2458.4,2.14773488]
[1751363893942,0.81334,2458.5,2458.4,2.96108488]
[1751363894146,0.81334,2458.5,2458.4,2.9628588]
[1751363894546,0.81334,2458.5,2458.4,2.96463272]
[1751363895048,3.2437663,2459.1,2458.7,0.81321]
[1751363895250,0.81315,2459.0,2458.9,2.33307845]
[1751363895449,0.81315,2459.0,2458.9,2.36500901]
[1751363895648,0.81315,2459.0,2458.9,0.03193056]
[1751363896045,17.20370845,2459.2,2458.7,2.33307845]
[1751363896246,0.81321,2458.8,2458.7,3.14630845]
[1751363896445,0.81321,2458.8,2458.7,4.39608354]
[1751363896642,3.4347,2459.1,2458.8,0.8132]
[1751363896643,0.81319,2458.9,2458.8,0.8132]
[1751363897248,12.24919,2458.9,2458.8,1.4776]
[1751363898851,12.24919,2458.9,2458.8,1.48824352]
[1751363899248,12.24919,2458.9,2458.8,1.49001744]
[1751363899652,12.24919,2458.9,2458.8,1.49179136]
[1751363899851,12.24919,2458.9,2458.8,0.67859136]
[1751363900252,12.24919,2458.9,2458.8,0.68036528]
[1751363900752,12.24919,2458.9,2458.8,0.6821392]
[1751363901050,12.24919,2458.9,2458.8,1.4953492]
[1751363901252,12.24919,2458.9,2458.8,1.49712312]
[1751363901654,12.24919,2458.9,2458.8,0.68391312]
[1751363901853,12.24919,2458.9,2458.8,0.68568704]
[1751363902153,12.24919,2458.9,2458.8,0.02128704]
[1751363902353,0.79018904,2458.7,2458.6,3.05397845]
[1751363902554,0.79018904,2458.7,2458.6,4.30453532]
[1751363902854,0.79018904,2458.7,2458.6,1.25055687]
[1751363903154,0.81328,2458.6,2458.5,3.14638845]
[1751363903353,2.03308,2458.8,2458.4,0.6909]
[1751363903354,0.81331,2458.5,2458.4,0.6909]